[Event "*** Titled Tuesday 3|2 Blitz"]
[Site "Chess.com"]
[Date "2016.03.01"]
[Round "3"]
[White "MMSANCHEZ"]
[Black "Recombinant"]
[Result "1-0"]
[WhiteElo "2271"]
[BlackElo "2204"]
[TimeControl "180+2"]
[EndTime "17:32:30 PST"]
[Termination "MMSANCHEZ won on time"]

1. d4 {[%clk 0:03:01.9]} 1... d6 {[%clk 0:03:01]} 2. Nf3 {[%clk 0:03:02.9]} 2...
g6 {[%clk 0:03:01.4]} 3. c4 {[%clk 0:03:04.4]} 3... Bg7 {[%clk 0:03:01.6]} 4.
Nc3 {[%clk 0:03:06]} 4... Nc6 {[%clk 0:03:02.5]} 5. e4 {[%clk 0:03:06.2]} 5...
Bg4 {[%clk 0:03:02.4]} 6. d5 {[%clk 0:03:02.7]} 6... Nd4 {[%clk 0:03:00.6]} 7.
Be3 {[%clk 0:03:02.5]} 7... c5 {[%clk 0:02:56]} 8. Be2 {[%clk 0:02:57.6]} 8...
Nxe2 {[%clk 0:02:55]} 9. Qxe2 {[%clk 0:02:58.1]} 9... Bxc3+ {[%clk 0:02:52.7]}
10. bxc3 {[%clk 0:02:58.9]} 10... Qa5 {[%clk 0:02:47.5]} 11. Qd2 {[%clk
0:02:58.8]} 11... Nf6 {[%clk 0:02:47.7]} 12. Ng5 {[%clk 0:02:53.3]} 12... h6
{[%clk 0:02:37.3]} 13. Nxf7 {[%clk 0:02:20.4]} 13... Kxf7 {[%clk 0:02:30.4]} 14.
f3 {[%clk 0:02:21.7]} 14... Bd7 {[%clk 0:02:28]} 15. O-O {[%clk 0:02:15.5]}
15... Kg7 {[%clk 0:02:27.5]} 16. Rae1 {[%clk 0:02:14.4]} 16... Qc7 {[%clk
0:02:25.8]} 17. Bf4 {[%clk 0:02:15.4]} 17... Nh5 {[%clk 0:02:17.1]} 18. Be3
{[%clk 0:02:15.8]} 18... Raf8 {[%clk 0:02:06]} 19. f4 {[%clk 0:02:17.1]} 19...
b6 {[%clk 0:01:55.5]} 20. Qe2 {[%clk 0:02:15.2]} 20... Rf7 {[%clk 0:01:41.6]}
21. e5 {[%clk 0:02:15.3]} 21... dxe5 {[%clk 0:00:44.9]} 22. fxe5 {[%clk
0:02:14.8]} 22... Bf5 {[%clk 0:00:12.9]} 23. g4 {[%clk 0:02:08.8]} 23... Kh7
{[%clk 0:00:13.3]} 24. gxf5 {[%clk 0:02:01.9]} 24... Qxe5 {[%clk 0:00:08.2]} 25.
fxg6+ {[%clk 0:02:01.5]} 25... Kxg6 {[%clk 0:00:07.8]} 26. Qg2+ {[%clk
0:01:59.8]} 26... Ng3 {[%clk 0:00:06.3]} 27. Qxg3+ {[%clk 0:01:50.8]} 27...
Qxg3+ {[%clk 0:00:07.2]} 28. hxg3 {[%clk 0:01:52.4]} 28... Rxf1+ {[%clk
0:00:08]} 29. Rxf1 {[%clk 0:01:52.6]} 29... h5 {[%clk 0:00:08.5]} 30. Kg2 {[%clk
0:01:52.8]} 30... Rd8 {[%clk 0:00:06.6]} 31. Bf4 {[%clk 0:01:47.5]} 31... Rd7
{[%clk 0:00:05.3]} 32. Kh3 {[%clk 0:01:47.6]} 32... a6 {[%clk 0:00:06.1]} 33.
Kh4 {[%clk 0:01:46.6]} 33... b5 {[%clk 0:00:06.7]} 34. cxb5 {[%clk 0:01:38.8]}
34... axb5 {[%clk 0:00:07.3]} 35. Re1 {[%clk 0:01:39.8]} 35... Rxd5 {[%clk
0:00:07.6]} 36. Rxe7 {[%clk 0:01:39.8]} 36... Rd3 {[%clk 0:00:07.5]} 37. Re6+
{[%clk 0:01:29.1]} 37... Kf7 {[%clk 0:00:06.6]} 38. Rb6 {[%clk 0:01:29.7]} 38...
Rxc3 {[%clk 0:00:02.4]} 39. Rxb5 {[%clk 0:01:30.4]} 39... Rc2 {[%clk 0:00:03.5]}
40. a4 {[%clk 0:01:28.1]} 40... Rh2+ {[%clk 0:00:04.3]} 41. Kg5 {[%clk
0:01:28.5]} 41... Ra2 {[%clk 0:00:04.6]} 42. Rxc5 {[%clk 0:01:26.4]} 42... Rxa4
{[%clk 0:00:05.3]} 43. Kxh5 {[%clk 0:01:27.1]} 43... Ra6 {[%clk 0:00:06.5]} 44.
g4 {[%clk 0:01:26.9]} 44... Kg7 {[%clk 0:00:07.1]} 45. g5 {[%clk 0:01:22.2]}
45... Kg8 {[%clk 0:00:06.8]} 46. Be5 {[%clk 0:01:20.7]} 46... Kh7 {[%clk
0:00:05.5]} 47. g6+ {[%clk 0:01:16.7]} 47... Rxg6 {[%clk 0:00:02.8]} 48. Rc7+
{[%clk 0:01:17.2]} 48... Rg7 {[%clk 0:00:02.5]} 49. Rxg7+ {[%clk 0:01:17.4]} 1-0

[Event "*** Titled Tuesday 3|2 Blitz"]
[Site "Chess.com"]
[Date "2016.03.01"]
[Round "3"]
[White "GrigorGrigorov"]
[Black "FairChess_on_YouTube"]
[Result "0-1"]
[WhiteElo "2521"]
[BlackElo "2752"]
[TimeControl "180+2"]
[EndTime "17:32:50 PST"]
[Termination "FairChess_on_YouTube won by resignation"]

1. d4 {[%clk 0:03:01.9]} 1... d5 {[%clk 0:03:00.6]} 2. Nf3 {[%clk 0:03:02.8]}
2... Nf6 {[%clk 0:03:01.2]} 3. c4 {[%clk 0:03:03.7]} 3... c6 {[%clk 0:03:02.4]}
4. Nbd2 {[%clk 0:03:03.2]} 4... Bf5 {[%clk 0:02:58.6]} 5. Nh4 {[%clk 0:03:02.5]}
5... Be4 {[%clk 0:02:59.1]} 6. e3 {[%clk 0:02:59]} 6... e6 {[%clk 0:02:57.1]} 7.
Qb3 {[%clk 0:02:45.7]} 7... Qc7 {[%clk 0:02:54.2]} 8. Nhf3 {[%clk 0:02:23.7]}
8... Nbd7 {[%clk 0:02:49.3]} 9. Nxe4 {[%clk 0:02:20.4]} 9... Nxe4 {[%clk
0:02:49.7]} 10. Bd3 {[%clk 0:02:14.9]} 10... f5 {[%clk 0:02:45.4]} 11. Bd2
{[%clk 0:01:58.6]} 11... Nxd2 {[%clk 0:02:14.5]} 12. Kxd2 {[%clk 0:01:55]} 12...
Nf6 {[%clk 0:02:08.6]} 13. Ke2 {[%clk 0:01:52.8]} 13... Ne4 {[%clk 0:02:04.9]}
14. Rac1 {[%clk 0:01:53]} 14... Bd6 {[%clk 0:02:04.7]} 15. g3 {[%clk 0:01:44.4]}
15... O-O {[%clk 0:02:01.3]} 16. Qc2 {[%clk 0:01:40.4]} 16... Qf7 {[%clk
0:01:58.1]} 17. Kf1 {[%clk 0:01:34.7]} 17... Kh8 {[%clk 0:01:35.9]} 18. h4
{[%clk 0:01:28.3]} 18... Qh5 {[%clk 0:01:23.5]} 19. Be2 {[%clk 0:01:24.9]} 19...
Qh6 {[%clk 0:01:21.5]} 20. Kg2 {[%clk 0:01:20.4]} 20... Rf6 {[%clk 0:01:18.1]}
21. Ng5 {[%clk 0:01:15.1]} 21... Qg6 {[%clk 0:01:02]} 22. f4 {[%clk 0:01:13.7]}
22... h6 {[%clk 0:00:59.1]} 23. h5 {[%clk 0:01:05.6]} 23... Qe8 {[%clk
0:00:59.9]} 24. Nxe4 {[%clk 0:01:06.3]} 24... fxe4 {[%clk 0:00:59.5]} 25. cxd5
{[%clk 0:00:56.8]} 25... exd5 {[%clk 0:00:56.5]} 26. Rcf1 {[%clk 0:00:47.7]}
26... Qe7 {[%clk 0:00:52.8]} 27. g4 {[%clk 0:00:46.5]} 27... Raf8 {[%clk
0:00:49.9]} 28. Rh3 {[%clk 0:00:42.5]} 28... Qc7 {[%clk 0:00:43.4]} 29. Rg3
{[%clk 0:00:36.8]} 29... Bxf4 {[%clk 0:00:37.1]} 30. exf4 {[%clk 0:00:37.1]}
30... Rxf4 {[%clk 0:00:39]} 31. Qd2 {[%clk 0:00:29.3]} 31... Rxf1 {[%clk
0:00:39]} 32. Bxf1 {[%clk 0:00:29.5]} 32... Rxf1 {[%clk 0:00:40.1]} 33. Kxf1
{[%clk 0:00:25.8]} 33... Qxg3 {[%clk 0:00:40.2]} 34. Qb4 {[%clk 0:00:27.4]}
34... Qxg4 {[%clk 0:00:32.3]} 35. Qxb7 {[%clk 0:00:27.8]} 35... Qf3+ {[%clk
0:00:30]} 36. Ke1 {[%clk 0:00:27.2]} 36... e3 {[%clk 0:00:28.1]} 37. Qb8+ {[%clk
0:00:21.7]} 37... Kh7 {[%clk 0:00:28.7]} 38. Qh2 {[%clk 0:00:23.3]} 38... Qe4
{[%clk 0:00:26.6]} 39. Qg3 {[%clk 0:00:22]} 39... Qb1+ {[%clk 0:00:23.7]} 40.
Ke2 {[%clk 0:00:22.8]} 40... Qxb2+ {[%clk 0:00:25.1]} 41. Kxe3 {[%clk
0:00:21.9]} 41... Qc3+ {[%clk 0:00:25.6]} 42. Kf2 {[%clk 0:00:21.7]} 42... Qxg3+
{[%clk 0:00:26.2]} 43. Kxg3 {[%clk 0:00:23.4]} 43... g6 {[%clk 0:00:27.3]} 44.
Kg4 {[%clk 0:00:25]} 44... Kg7 {[%clk 0:00:28.4]} 0-1

[Event "*** Titled Tuesday 3|2 Blitz"]
[Site "Chess.com"]
[Date "2016.03.01"]
[Round "3"]
[White "josiwales"]
[Black "hermionegrangermagic"]
[Result "0-1"]
[WhiteElo "2091"]
[BlackElo "2301"]
[TimeControl "180+2"]
[EndTime "17:32:54 PST"]
[Termination "hermionegrangermagic won by resignation"]

1. e4 {[%clk 0:03:01.9]} 1... c5 {[%clk 0:02:59.9]} 2. Nc3 {[%clk 0:03:02.4]}
2... Nc6 {[%clk 0:02:59.7]} 3. g3 {[%clk 0:03:03.6]} 3... g6 {[%clk 0:03:00.8]}
4. Bg2 {[%clk 0:03:04.6]} 4... Bg7 {[%clk 0:03:02.1]} 5. d3 {[%clk 0:03:06.3]}
5... d6 {[%clk 0:03:02.7]} 6. Be3 {[%clk 0:03:07.5]} 6... Nf6 {[%clk 0:03:03.8]}
7. h3 {[%clk 0:03:08.3]} 7... O-O {[%clk 0:03:04.4]} 8. f4 {[%clk 0:03:09.5]}
8... Rb8 {[%clk 0:03:04.4]} 9. g4 {[%clk 0:03:09]} 9... b5 {[%clk 0:03:04.2]}
10. Nf3 {[%clk 0:03:10.1]} 10... b4 {[%clk 0:03:04.3]} 11. Ne2 {[%clk
0:03:11.3]} 11... c4 {[%clk 0:02:56.2]} 12. O-O {[%clk 0:03:08.7]} 12... cxd3
{[%clk 0:02:48.9]} 13. cxd3 {[%clk 0:03:09.8]} 13... Nd7 {[%clk 0:02:49.3]} 14.
d4 {[%clk 0:03:09.6]} 14... e5 {[%clk 0:02:49.7]} 15. d5 {[%clk 0:03:09.3]}
15... Ne7 {[%clk 0:02:46.6]} 16. f5 {[%clk 0:03:10.6]} 16... f6 {[%clk 0:02:43]}
17. Ng3 {[%clk 0:03:11.2]} 17... Ba6 {[%clk 0:02:38.3]} 18. Rf2 {[%clk
0:03:11.4]} 18... Qa5 {[%clk 0:02:35.1]} 19. h4 {[%clk 0:03:06.4]} 19... Nc5
{[%clk 0:02:34.4]} 20. Bxc5 {[%clk 0:02:50.4]} 20... Qxc5 {[%clk 0:02:34.3]} 21.
Rc1 {[%clk 0:02:51.5]} 21... Qb6 {[%clk 0:02:35]} 22. Qd2 {[%clk 0:02:45.6]}
22... Rbc8 {[%clk 0:02:34.3]} 23. Rd1 {[%clk 0:02:39.4]} 23... Rc4 {[%clk
0:02:29.3]} 24. Kh2 {[%clk 0:02:33.7]} 24... Rfc8 {[%clk 0:02:27.2]} 25. b3
{[%clk 0:02:33.3]} 25... Rc3 {[%clk 0:02:26.7]} 26. g5 {[%clk 0:02:20.8]} 26...
Rd3 {[%clk 0:02:24.1]} 27. h5 {[%clk 0:02:05]} 27... Rxd2 {[%clk 0:02:23.6]} 28.
Rdxd2 {[%clk 0:02:06.9]} 28... fxg5 {[%clk 0:02:06]} 29. Bh3 {[%clk 0:02:05.2]}
29... Rf8 {[%clk 0:02:02]} 30. Rc2 {[%clk 0:01:42.2]} 30... Qe3 {[%clk
0:01:45.8]} 31. Kg2 {[%clk 0:01:27.6]} 31... gxf5 {[%clk 0:01:37.2]} 32. exf5
{[%clk 0:01:26.7]} 32... Nxd5 {[%clk 0:01:36]} 33. f6 {[%clk 0:01:17.7]} 33...
Nf4+ {[%clk 0:01:31.3]} 34. Kh2 {[%clk 0:01:18.8]} 34... Bxf6 {[%clk 0:01:21.6]}
35. Be6+ {[%clk 0:01:15.6]} 35... Kh8 {[%clk 0:01:20.5]} 36. Nf5 {[%clk
0:01:16.8]} 36... Qe4 {[%clk 0:01:12.8]} 37. Ng3 {[%clk 0:01:16.1]} 37... Qb7
{[%clk 0:01:08]} 38. Rcd2 {[%clk 0:01:10.2]} 38... Nxe6 {[%clk 0:01:06.8]} 39.
Rxd6 {[%clk 0:01:08.9]} 39... Nf4 {[%clk 0:01:04.8]} 40. h6 {[%clk 0:01:00.6]}
40... Qc8 {[%clk 0:01:03.7]} 41. Ne4 {[%clk 0:00:45]} 41... Qh3+ {[%clk
0:01:00.6]} 42. Kg1 {[%clk 0:00:46.3]} 42... Qg4+ {[%clk 0:00:55.9]} 43. Kh2
{[%clk 0:00:45.9]} 43... Qh5+ {[%clk 0:00:54.5]} 44. Kg1 {[%clk 0:00:44.1]}
44... Nh3+ {[%clk 0:00:55]} 45. Kg2 {[%clk 0:00:45.4]} 45... Nxf2 {[%clk
0:00:52]} 46. Nxf6 {[%clk 0:00:46.4]} 46... Qg6 {[%clk 0:00:47.5]} 47. Nxe5
{[%clk 0:00:43.5]} 47... Qxf6 {[%clk 0:00:42.4]} 48. Rxf6 {[%clk 0:00:38.2]}
48... Rxf6 {[%clk 0:00:42]} 0-1

[Event "*** Titled Tuesday 3|2 Blitz"]
[Site "Chess.com"]
[Date "2016.03.01"]
[Round "3"]
[White "Titus369"]
[Black "Shivagami"]
[Result "1-0"]
[WhiteElo "2284"]
[BlackElo "1808"]
[TimeControl "180+2"]
[EndTime "17:33:52 PST"]
[Termination "Titus369 won by resignation"]

1. e4 {[%clk 0:03:01.9]} 1... c5 {[%clk 0:03:00.4]} 2. Nf3 {[%clk 0:03:02.6]}
2... d6 {[%clk 0:03:01.5]} 3. d4 {[%clk 0:03:03.1]} 3... cxd4 {[%clk 0:03:03.2]}
4. Nxd4 {[%clk 0:03:05]} 4... Nf6 {[%clk 0:03:04.5]} 5. Nc3 {[%clk 0:03:05.2]}
5... g6 {[%clk 0:03:06.1]} 6. Be3 {[%clk 0:03:05.4]} 6... Bg7 {[%clk 0:03:07.8]}
7. f3 {[%clk 0:03:05.6]} 7... O-O {[%clk 0:03:07.9]} 8. Qd2 {[%clk 0:03:05.1]}
8... Nc6 {[%clk 0:03:09.3]} 9. Bc4 {[%clk 0:03:03.9]} 9... Bd7 {[%clk
0:03:06.1]} 10. O-O-O {[%clk 0:03:01.8]} 10... Rc8 {[%clk 0:03:07]} 11. Bb3
{[%clk 0:03:02.8]} 11... Ne5 {[%clk 0:03:08.1]} 12. h4 {[%clk 0:03:03.3]} 12...
Nc4 {[%clk 0:02:58.9]} 13. Bxc4 {[%clk 0:03:03.9]} 13... Rxc4 {[%clk 0:03:00.8]}
14. Kb1 {[%clk 0:03:04.5]} 14... Qa5 {[%clk 0:02:57]} 15. Nb3 {[%clk 0:03:03.3]}
15... Qc7 {[%clk 0:02:50.1]} 16. g4 {[%clk 0:02:53.5]} 16... a5 {[%clk
0:02:23.9]} 17. h5 {[%clk 0:02:42.2]} 17... a4 {[%clk 0:02:20.3]} 18. Nd4 {[%clk
0:02:36.9]} 18... a3 {[%clk 0:02:20.7]} 19. hxg6 {[%clk 0:02:35]} 19... fxg6
{[%clk 0:02:20.6]} 20. g5 {[%clk 0:02:24.2]} 20... Nh5 {[%clk 0:02:15.3]} 21.
Nd5 {[%clk 0:02:19.6]} 21... Qd8 {[%clk 0:02:02.2]} 22. Nb3 {[%clk 0:02:06.7]}
22... Bxb2 {[%clk 0:01:55.3]} 23. Nb6 {[%clk 0:01:45.2]} 23... Rc8 {[%clk
0:01:45.5]} 24. Nxc8 {[%clk 0:01:45.4]} 24... Qxc8 {[%clk 0:01:43.5]} 25. Bd4
{[%clk 0:01:46.1]} 25... Bxd4 {[%clk 0:01:42]} 26. Qxd4 {[%clk 0:01:47.2]} 26...
Rxf3 {[%clk 0:01:38.5]} 27. Rd3 {[%clk 0:01:39.6]} 27... Rf8 {[%clk 0:01:33.1]}
28. Re1 {[%clk 0:01:30]} 28... Nf4 {[%clk 0:01:26.1]} 29. Rc3 {[%clk 0:01:26.1]}
29... Qb8 {[%clk 0:01:20.3]} 30. Qb4 {[%clk 0:01:15.3]} 30... Ne6 {[%clk
0:01:13.7]} 31. Qxa3 {[%clk 0:01:11.4]} 31... Nxg5 {[%clk 0:01:12.5]} 32. Qa5
{[%clk 0:01:07.2]} 32... Ne6 {[%clk 0:01:11.9]} 33. Qd5 {[%clk 0:01:01.8]} 33...
Rf7 {[%clk 0:01:02.9]} 34. Rh1 {[%clk 0:00:53.3]} 34... Nf4 {[%clk 0:01:00.5]}
35. Qd2 {[%clk 0:00:51.2]} 35... Qa7 {[%clk 0:00:54]} 36. Rc7 {[%clk 0:00:41.1]}
36... Be6 {[%clk 0:00:50.6]} 37. Qb4 {[%clk 0:00:34]} 37... Ne2 {[%clk
0:00:25.6]} 38. Kb2 {[%clk 0:00:23.4]} 38... Bxb3 {[%clk 0:00:20]} 39. axb3
{[%clk 0:00:22.2]} 39... Qd4+ {[%clk 0:00:15.7]} 40. Qxd4 {[%clk 0:00:22.9]}
40... Nxd4 {[%clk 0:00:17.6]} 41. Rxb7 {[%clk 0:00:24.6]} 41... Kf8 {[%clk
0:00:16.5]} 42. Rb8+ {[%clk 0:00:24]} 42... Kg7 {[%clk 0:00:17.5]} 43. Rc8
{[%clk 0:00:25.8]} 43... Rf4 {[%clk 0:00:18.5]} 44. Re1 {[%clk 0:00:23.6]} 44...
Nf3 {[%clk 0:00:19.3]} 45. Re3 {[%clk 0:00:23.7]} 45... Ng5 {[%clk 0:00:20.5]}
46. Rc4 {[%clk 0:00:24.1]} 46... Kf6 {[%clk 0:00:21.1]} 47. b4 {[%clk
0:00:25.4]} 47... h5 {[%clk 0:00:21.9]} 48. b5 {[%clk 0:00:26.7]} 48... Ke5
{[%clk 0:00:23.1]} 49. b6 {[%clk 0:00:27.6]} 49... Rf8 {[%clk 0:00:24.1]} 50. b7
{[%clk 0:00:28.4]} 50... Rb8 {[%clk 0:00:25.5]} 51. Rb3 {[%clk 0:00:29.5]} 51...
h4 {[%clk 0:00:25.2]} 52. Rc8 {[%clk 0:00:29.5]} 52... Rxb7 {[%clk 0:00:26.5]}
53. Rxb7 {[%clk 0:00:30]} 53... h3 {[%clk 0:00:26.8]} 54. Rxe7+ {[%clk
0:00:29.7]} 54... Kf4 {[%clk 0:00:27.3]} 55. Rh8 {[%clk 0:00:29.8]} 55... Kg3
{[%clk 0:00:27.7]} 56. Rg7 {[%clk 0:00:30.5]} 56... Nxe4 {[%clk 0:00:26]} 57.
Rxg6+ {[%clk 0:00:31.6]} 57... Kf4 {[%clk 0:00:26.3]} 58. Rxh3 {[%clk
0:00:31.8]} 58... Kf5 {[%clk 0:00:25.1]} 59. Rg1 {[%clk 0:00:32.3]} 1-0

[Event "*** Titled Tuesday 3|2 Blitz"]
[Site "Chess.com"]
[Date "2016.03.01"]
[Round "3"]
[White "IMRosen"]
[Black "davidarenas1224"]
[Result "0-1"]
[WhiteElo "2269"]
[BlackElo "2204"]
[TimeControl "180+2"]
[EndTime "17:33:55 PST"]
[Termination "davidarenas1224 won by resignation"]

1. d4 {[%clk 0:03:01.9]} 1... Nf6 {[%clk 0:03:00.2]} 2. Nf3 {[%clk 0:03:03.4]}
2... g6 {[%clk 0:03:01.3]} 3. c4 {[%clk 0:03:02.7]} 3... Bg7 {[%clk 0:03:02.4]}
4. Nc3 {[%clk 0:03:04.1]} 4... O-O {[%clk 0:03:03.6]} 5. Bg5 {[%clk 0:03:05.8]}
5... d6 {[%clk 0:03:04.6]} 6. e3 {[%clk 0:03:06.6]} 6... c5 {[%clk 0:03:06.1]}
7. d5 {[%clk 0:03:07.7]} 7... Qb6 {[%clk 0:03:07]} 8. Qc1 {[%clk 0:03:02.1]}
8... h6 {[%clk 0:03:07.9]} 9. Bh4 {[%clk 0:03:02.8]} 9... e5 {[%clk 0:03:08.4]}
10. Nd2 {[%clk 0:03:03]} 10... Nbd7 {[%clk 0:02:57.6]} 11. Be2 {[%clk 0:03:04]}
11... a6 {[%clk 0:02:58.2]} 12. O-O {[%clk 0:03:01.1]} 12... Kh7 {[%clk
0:02:56.7]} 13. a3 {[%clk 0:03:00.1]} 13... Ng8 {[%clk 0:02:57.1]} 14. Rb1
{[%clk 0:02:55.5]} 14... f5 {[%clk 0:02:56.3]} 15. f4 {[%clk 0:02:52.1]} 15...
e4 {[%clk 0:02:55.6]} 16. Kh1 {[%clk 0:02:48.6]} 16... Ndf6 {[%clk 0:02:51.8]}
17. h3 {[%clk 0:02:43.4]} 17... Kh8 {[%clk 0:02:52.5]} 18. b4 {[%clk 0:02:42.9]}
18... Nh7 {[%clk 0:02:42.2]} 19. Na4 {[%clk 0:02:23.2]} 19... Qc7 {[%clk
0:02:41.6]} 20. bxc5 {[%clk 0:02:20.7]} 20... dxc5 {[%clk 0:02:43.5]} 21. Nb6
{[%clk 0:02:22]} 21... Rb8 {[%clk 0:02:42.9]} 22. Qe1 {[%clk 0:02:18.5]} 22...
Bc3 {[%clk 0:02:33.9]} 23. Rb3 {[%clk 0:02:16.4]} 23... Ba5 {[%clk 0:02:33]} 24.
Na4 {[%clk 0:02:05.7]} 24... Bd7 {[%clk 0:02:19.9]} 25. Nc3 {[%clk 0:02:05.6]}
25... Ngf6 {[%clk 0:02:09.8]} 26. Rg1 {[%clk 0:01:56.5]} 26... Bxc3 {[%clk
0:01:55.3]} 27. Rxc3 {[%clk 0:01:56]} 27... b5 {[%clk 0:01:56.2]} 28. g4 {[%clk
0:01:53.4]} 28... b4 {[%clk 0:01:51.1]} 29. axb4 {[%clk 0:01:52.5]} 29... cxb4
{[%clk 0:01:52.1]} 30. Rb3 {[%clk 0:01:46]} 30... a5 {[%clk 0:01:52.2]} 31. Qa1
{[%clk 0:01:47.7]} 31... a4 {[%clk 0:01:51.1]} 32. Rbb1 {[%clk 0:01:49]} 32...
Kg8 {[%clk 0:01:43.3]} 33. Qe5 {[%clk 0:01:33.6]} 33... Ne8 {[%clk 0:01:15.6]}
34. Be7 {[%clk 0:01:14.3]} 34... Rf7 {[%clk 0:01:14.1]} 35. Bxb4 {[%clk
0:01:15.5]} 35... fxg4 {[%clk 0:01:09.3]} 36. Qxc7 {[%clk 0:01:08.2]} 36... Nxc7
{[%clk 0:01:10]} 37. hxg4 {[%clk 0:01:07.5]} 37... Nf6 {[%clk 0:01:11.2]} 38.
Bd6 {[%clk 0:01:07.7]} 38... Rxb1 {[%clk 0:01:10.5]} 39. Rxb1 {[%clk 0:01:08.4]}
39... Bxg4 {[%clk 0:01:11.3]} 40. Bxg4 {[%clk 0:00:57.1]} 40... Nxg4 {[%clk
0:01:13.2]} 41. Nxe4 {[%clk 0:00:56.1]} 41... Nxe3 {[%clk 0:01:12.3]} 42. Rb8+
{[%clk 0:00:47.7]} 42... Kh7 {[%clk 0:00:47]} 43. Rb7 {[%clk 0:00:48.3]} 43...
Nxc4 {[%clk 0:00:46.9]} 44. Rxc7 {[%clk 0:00:39]} 44... Nxd6 {[%clk 0:00:45.7]}
45. Rxf7+ {[%clk 0:00:12.4]} 45... Nxf7 {[%clk 0:00:47.6]} 46. Nc3 {[%clk
0:00:13.5]} 46... a3 {[%clk 0:00:47.4]} 47. Kg2 {[%clk 0:00:14.9]} 47... Nd6
{[%clk 0:00:46.4]} 48. Kf3 {[%clk 0:00:15.2]} 48... Kg7 {[%clk 0:00:46]} 49. Ke3
{[%clk 0:00:16.6]} 49... Kf6 {[%clk 0:00:47]} 50. Kd4 {[%clk 0:00:17.9]} 50...
Nb5+ {[%clk 0:00:46.6]} 51. Nxb5 {[%clk 0:00:11.4]} 51... a2 {[%clk 0:00:47.4]}
52. d6 {[%clk 0:00:12.4]} 52... a1=Q+ {[%clk 0:00:48.5]} 53. Kd5 {[%clk
0:00:13.1]} 53... Qd1+ {[%clk 0:00:49]} 54. Kc6 {[%clk 0:00:13.2]} 54... Qf3+
{[%clk 0:00:49.2]} 55. Kc7 {[%clk 0:00:13.1]} 55... Qxf4 {[%clk 0:00:49.3]} 56.
Kd8 {[%clk 0:00:10.3]} 56... Ke6 {[%clk 0:00:46.3]} 57. Kc7 {[%clk 0:00:07.3]}
57... Qc4+ {[%clk 0:00:46.3]} 58. Kb6 {[%clk 0:00:08.7]} 58... Qxb5+ {[%clk
0:00:46.9]} 59. Kxb5 {[%clk 0:00:10.6]} 59... Kxd6 {[%clk 0:00:48.3]} 0-1